Cogmind - Beta 13 @@@ ROGUE MODE // 2024.04.04 @ 15:03:52 Player: garza Result: Destroyed by S-10 Pest with Light Assault Rifle Performance ------------- Evolutions (1) 500 Regions Visited (4) 800 Robots Destroyed (39) 195 Value Destroyed (1067) 1067 Prototype IDs (1) 20 Alien Tech Used (0) 0 Bonus (0) 0 TOTAL SCORE: 2582 Bonus ------- None Cogmind --------- Core Integrity 0/400 Matter 273/300 Energy 265/265 System Corruption 0% Temperature Cool (96) Movement Core (400) Ox7 Location -9/Mines Parts ------- > --- POWER (1) -------- Improved Ion Engine > --- PROPULSION (3) --- (None) > --- UTILITY (3) ------ Heat Sink Small Storage Unit Hardened Light Armor Plating > --- WEAPON (2) ------- Particle Gun Spread Laser > --- INVENTORY (8) ---- Light Ion Engine Huge Storage Unit Medium Matter Pod (100) Weight Redist. System Decoy Drone Bay Katana Peak State ------------ > --- POWER ------------ Ion Engine > --- PROPULSION ------- (None) > --- UTILITY ---------- Small Storage Unit Improved Terrain Scanner Hardened Light Armor Plating > --- WEAPON ----------- Heavy Assault Rifle Heavy Assault Rifle > --- INVENTORY -------- Improved Ion Engine Heat Sink Huge Storage Unit Small Matter Pod Hardened Light Armor Plating Decoy Drone Bay [Rating: 13] Favorites ----------- Power Ion Engine Engine Ion Engine Propulsion None Utility Small Storage Unit Device Heat Sink Storage Small Storage Unit Protection Hardened Light Armor Plating Weapon Heavy Assault Rifle Energy Gun Small Laser Ballistic Gun Heavy Assault Rifle Special Weapon Mining Laser Build | -11 -10 -10 -9 -9 ------- Run | Yrd Mat Min Mat Min Slots Evolved 2 | . . . 2 . Power . | . . . . . Propulsion 1 | . . . 1 . Utility 1 | . . . 1 . Weapon . | . . . . . Parts Attached 24 | 5 1 3 13 2 Power 6 | 1 . 1 3 1 Engine 6 | 1 . 1 3 1 Core . | . . . . . Reactor . | . . . . . Propulsion . | . . . . . Treads . | . . . . . Leg . | . . . . . Wheel . | . . . . . Hover . | . . . . . Flight . | . . . . . Utility 8 | 2 . . 6 . Device 3 | 1 . . 2 . Storage 1 | 1 . . . . Processor . | . . . . . Hackware . | . . . . . Protection 4 | . . . 4 . Artifact . | . . . . . Weapon 10 | 2 1 2 4 1 Energy Gun 5 | 1 . . 3 1 Energy Cannon . | . . . . . Ballistic Gun 4 | 1 1 1 1 . Ballistic Cannon . | . . . . . Launcher . | . . . . . Special Weapon 1 | . . 1 . . Impact Weapon . | . . . . . Slashing Weapon . | . . . . . Piercing Weapon . | . . . . . Special Melee Weapon . | . . . . . Unidentified Prototypes 1 | . . . 1 . Parts Lost 8 | . . 1 6 1 Power 1 | . . . 1 . Propulsion . | . . . . . Utility 2 | . . . 2 . Weapon 5 | . . 1 3 1 Highest Loss Streak 2 | . . 1 2 1 To Critical Strikes . | . . . . . Average Slot Usage (%) 66 | . 71 70 64 64 Engine 11 | . 14 14 10 9 Device 13 | . 14 14 13 11 Storage 12 | . 14 14 11 11 Protection 5 | . . . 8 11 Energy Gun 10 | . 14 . 11 18 Ballistic Gun 11 | . 14 19 10 3 Special Weapon 1 | . . 7 . . Naked Turns . | . . . . . Heaviest Build 24 | 11 13 17 22 24 Greatest Support 3 | 3 3 3 3 3 Greatest Overweight (x) 7 | 3 4 5 7 7 Average Overweight (x) 4 | 2 3 4 5 6 Largest Inventory Capacity 8 | 8 8 8 8 8 Average Capacity 7 | 7 8 8 8 8 Most Carried 8 | 2 8 8 8 8 Average Carried 6 | 1 5 7 7 6 Final Capacity 8 | 8 8 8 8 8 Final Carried 8 | 2 8 7 8 7 Class Distribution -------------------- 76% | Mutant 23% | Scavenger-Mutant Dominant Class ---------------- Mutant | -10/Materials Mutant | -10/Mines Scavenger-Mutant | -9/Materials Mutant | -9/Mines Resources | -11 -10 -10 -9 -9 ----------- Run | Yrd Mat Min Mat Min Matter Collected 744 | 254 15 79 375 21 Remotely . | . . . . . Salvage Created 1418 | 102 213 98 999 6 Parts 72 | 5 12 2 53 . Haulers Intercepted 1 | . . . 1 . Recyclers Shooed 7 | 1 . . 6 . Parts Field Recycled . | . . . . . Retrieved Matter . | . . . . . Parts Self-Destructed . | . . . . . Prevented . | . . . . . Kills | -11 -10 -10 -9 -9 ------- Run | Yrd Mat Min Mat Min Combat Hostiles Destroyed 29 | . 4 2 19 4 Guns 27 | . 4 2 17 4 AOE 2 | . . . 2 . Classes Destroyed 11 | 2 3 . 4 2 Worker 4 | . 1 . 3 . Tunneler 1 | 1 . . . . Hauler 1 | . . . 1 . Recycler 4 | 1 . . 3 . Watcher 2 | . 1 . 1 . Swarmer 3 | . . . 3 . Grunt 19 | . 4 2 13 . Duelist 1 | . . . 1 . Sentry 2 | . . . 2 . Demolisher 2 | . . . . 2 Assembled 2 | . . . . 2 Best Kill Streak 13 | 2 4 1 13 2 Combat Bots Only 8 | . 3 1 8 2 Max Kills in Single Turn 3 | 1 1 1 3 1 Gunslinging 1 | . . . 1 . Exploded 2 | . . . 2 . Melee . | . . . . . Uniques/NPCs Destroyed . | . . . . . Combat | -11 -10 -10 -9 -9 -------- Run | Yrd Mat Min Mat Min Hostile Shots Fired 158 | . 14 14 99 31 Missed 34 | . 1 4 20 9 Damage Taken 1860 | . 174 132 1113 441 Core 493 | . 64 26 221 182 Absorbed by Shields . | . . . . . Core Remaining (%) 82 | 100 . 64 . . Volleys Fired 115 | 7 16 12 61 19 Largest 2 | 2 2 2 2 2 Hottest 130 | 60 63 46 105 130 Shots Fired 206 | 11 32 18 111 34 Gun 206 | 11 32 18 111 34 Cannon . | . . . . . Launcher . | . . . . . Special . | . . . . . Kinetic 104 | 4 16 18 55 11 Thermal 102 | 7 16 . 56 23 Explosive . | . . . . . Electromagnetic . | . . . . . Robot Hit Streak 13 | 4 10 4 13 4 Robot Miss Streak 13 | 2 2 2 4 13 Penetration Max . | . . . . . Secondary Targets 2 | . . . 1 1 Max Gunslinging Chain 1 | . . . 1 1 Shots Hit Robots 146 | 6 24 12 81 23 Core Hits 95 | 3 13 4 53 22 Critical Kills . | . . . . . Critical Parts Destroyed 1 | . . . . 1 Critical Strikes 4 | . . . 3 1 Burn 3 | . . . 3 . Destroy 1 | . . . . 1 Melee Attacks . | . . . . . Impact . | . . . . . Slashing . | . . . . . Piercing . | . . . . . Sneak Attacks . | . . . . . Combat Hostiles . | . . . . . Follow-up Attacks . | . . . . . Damage Inflicted 2075 | 61 241 184 1333 256 Guns 1846 | 61 241 184 1104 256 Cannons . | . . . . . Explosions 229 | . . . 229 . Melee . | . . . . . Ramming . | . . . . . Kinetic 939 | 15 100 184 549 91 Thermal 1006 | 46 141 . 654 165 Explosive . | . . . . . Electromagnetic 130 | . . . 130 . Impact . | . . . . . Slashing . | . . . . . Piercing . | . . . . . Highest Corruption . | . . . . . Average Corruption . | . . . . . Corruption Purged . | . . . . . Corruption Blocked . | . . . . . Overload Shots . | . . . . . Overflow Damage 10 | . . . 10 . Projectiles . | . . . . . Explosions 10 | . . . 10 . Melee . | . . . . . Knockbacks . | . . . . . Impact . | . . . . . Kinetic . | . . . . . Secondary . | . . . . . Self-Inflicted Damage 124 | . . . 124 . Shots 5 | . . . 5 . Rammed . | . . . . . Targets Rammed . | . . . . . Kicked . | . . . . . Crushed . | . . . . . Highest Temperature 204 | 40 141 4 204 96 Average Temperature 47 | 20 57 4 58 23 Received Heat Transfer 627 | . 99 78 450 . Siege Activations . | . . . . . Robots Corrupted . | . . . . . Combat Hostiles . | . . . . . Parts Fried . | . . . . . Impact Corruptions . | . . . . . Robots Melted . | . . . . . Combat Hostiles . | . . . . . Parts Melted 1 | . . . 1 . Heat Transferred 2124 | 100 325 . 1494 205 Parts Sabotaged . | . . . . . Parts Stolen . | . . . . . Parts Stripped . | . . . . . Power Chain Reactions 3 | . . . 3 . Alert | -11 -10 -10 -9 -9 ------- Run | Yrd Mat Min Mat Min Peak Influence 215 | 10 148 65 215 132 Initial 82 | . 6 . . 82 Average 56 | 6 66 7 61 100 Maximum Alert Level 1 | . . . 1 . Low Security (%) 96 | 100 100 100 93 100 Level 1 3 | . . . 6 . Level 2 . | . . . . . Level 3 . | . . . . . Level 4 . | . . . . . Level 5 . | . . . . . High Security . | . . . . . Max Security . | . . . . . Squads Dispatched 3 | . . . 3 . Investigation 1 | . . . 1 . Extermination . | . . . . . Reinforcement 2 | . . . 2 . Assault . | . . . . . Garrison . | . . . . . Intercept . | . . . . . Searches Triggered . | . . . . . Construction Impeded . | . . . . . Haulers Reinforced . | . . . . . Active Scanning Responses . | . . . . . Cargo Convoy Interrupts . | . . . . . Stealth | -11 -10 -10 -9 -9 --------- Run | Yrd Mat Min Mat Min Distress Signals 4 | . . . 3 1 Communications Jammed . | . . . . . Distress Signals . | . . . . . Times Spotted 52 | . 8 3 27 14 Peak Tracking Total 7 | . 4 2 5 7 Tactical Retreats 3 | . 1 1 . 1 Traps | -11 -10 -10 -9 -9 ------- Run | Yrd Mat Min Mat Min Traps Triggered . | . . . . . Indirectly . | . . . . . Trap Hack Attempts . | . . . . . Triggered . | . . . . . Disarmed . | . . . . . Reprogrammed . | . . . . . Reused . | . . . . . Traps Extracted . | . . . . . Installed . | . . . . . Triggered . | . . . . . Machines | -11 -10 -10 -9 -9 ---------- Run | Yrd Mat Min Mat Min Machines Disabled 4 | . . . 4 . Max in Single Turn 4 | . . . 4 . Machines Repaired . | . . . . . Machines Dismantled . | . . . . . Machines Sabotaged . | . . . . . Overloaded Fab Kills . | . . . . . Hacking | -11 -10 -10 -9 -9 --------- Run | Yrd Mat Min Mat Min Machines Accessed 8 | . 4 1 3 . Terminals 4 | . 2 . 2 . Fabricators . | . . . . . Repair Stations . | . . . . . Recycling Units 3 | . 2 . 1 . Scanalyzers . | . . . . . Garrison Access . | . . . . . Total Hacks 23 | . 13 1 9 . Successful 16 | . 10 1 5 . Failed 7 | . 3 . 4 . Catastrophic 1 | . . . 1 . Database Lockouts . | . . . . . Manual 11 | . 7 . 4 . Terminals 17 | . 9 . 8 . Fabricators . | . . . . . Repair Stations . | . . . . . Recycling Units 5 | . 4 . 1 . Scanalyzers . | . . . . . Garrison Access . | . . . . . Terminal Hacks 11 | . 6 1 4 . Record 1 | . . . 1 . Robot Analysis 1 | . 1 . . . Open Door 1 | . . 1 . . Branch Access Points 1 | . 1 . . . Terminal Index 1 | . 1 . . . Alert Level 3 | . . . 3 . Locate Traps 2 | . 2 . . . Hauler Manifests 1 | . 1 . . . Fabricator Hacks . | . . . . . Repair Station Hacks . | . . . . . Recycling Unit Hacks 5 | . 4 . 1 . Process 1 | . 1 . . . Report Inventory 3 | . 2 . 1 . Retrieve Matter 1 | . 1 . . . Scanalyzer . | . . . . . Garrison Access Hacks . | . . . . . Unauthorized Hacks . | . . . . . Terminals . | . . . . . Fabricators . | . . . . . Repair Stations . | . . . . . Recycling Units . | . . . . . Scanalyzers . | . . . . . Garrison Access . | . . . . . Data Cores Recovered . | . . . . . Used . | . . . . . Hacking Detections 3 | . 1 . 2 . Full Trace Events 1 | . . . 1 . Feedback Events . | . . . . . Feedback Blocked . | . . . . . Robot Schematics Acquired . | . . . . . Robots Built . | . . . . . Authchips . | . . . . . Time . | . . . . . Total Robot Build Rating . | . . . . . Part Schematics Acquired . | . . . . . Parts Built . | . . . . . Authchips . | . . . . . Time . | . . . . . Total Part Build Rating . | . . . . . Parts Repaired . | . . . . . Time . | . . . . . Parts Recycled . | . . . . . Recycled Matter . | . . . . . Retrieved Matter 69 | . 69 . . . Retrieved Components . | . . . . . Parts Scanalyzed . | . . . . . Part Schematics Acquired . | . . . . . Parts Damaged . | . . . . . Bothacking | -11 -10 -10 -9 -9 ------------ Run | Yrd Mat Min Mat Min Used RIF Installer . | . . . . . Robots Hacked . | . . . . . Non-combat . | . . . . . Combat . | . . . . . Robot Hacks Applied . | . . . . . Relay Couplers Released . | . . . . . Fabnet Peak Effective % . | . . . . . Robots Rewired . | . . . . . Allies Hacked . | . . . . . Hacks Repelled . | . . . . . Allies | -11 -10 -10 -9 -9 -------- Run | Yrd Mat Min Mat Min Total Allies 1 | . . 1 . . Largest Group 1 | . . 1 . . Highest-Rated Group 31 | . . 31 . . Highest-Rated Ally 31 | . . 31 . . Total Orders . | . . . . . Ally Attacks . | . . . . . Total Damage . | . . . . . Kills . | . . . . . Allies Corrupted . | . . . . . Allies Melted . | . . . . . Intel | -11 -10 -10 -9 -9 ------- Run | Yrd Mat Min Mat Min Robot Analysis Total 1 | . 1 . . . Derelict Logs Recovered . | . . . . . Drone Launches . | . . . . . Drone Recoveries . | . . . . . Exploration | -11 -10 -10 -9 -9 ------------- Run | Yrd Mat Min Mat Min Turns Passed 2732 | 112 434 529 1181 476 Spaces Moved 818 | 47 162 186 315 108 Core 818 | 47 162 186 315 108 Treads . | . . . . . Legs . | . . . . . Wheels . | . . . . . Hover . | . . . . . Flight . | . . . . . Fastest Speed 50 | 50 200 200 250 300 Average Speed 282 | 181 211 266 308 387 Slowest Speed 400 | 200 250 300 400 400 Overloaded Moves . | . . . . . Propulsion Burnouts . | . . . . . Robots Hopped . | . . . . . Cave-ins Triggered . | . . . . . Exploration Rate (%) 30 | 5 30 46 43 27 Regions Visited 4 Branch Regions 2 Pre-discovered Areas . | . . . . . Known Exits Taken 1 | . 1 . . . Unknown Exits Taken 3 | 1 . 1 1 . Scrap Searched 1 | . . . . 1 Spaces Dug . | . . . . . Terrain Destroyed 6 | . . . 6 . Melee . | . . . . . Projectile . | . . . . . AOE 6 | . . . 6 . Terrain Rammed . | . . . . . Walls Destroyed . | . . . . . Machines Disabled . | . . . . . Actions | -11 -10 -10 -9 -9 --------- Run | Yrd Mat Min Mat Min Total 1045 | 62 229 204 418 132 Wait 59 | 1 40 . 16 2 Move 814 | 46 161 185 314 108 Hop . | . . . . . Pick Up 19 | 3 8 1 6 1 Fast Attach 7 | 4 . 1 2 . Attach 10 | 1 . 2 5 2 Detach 1 | . . . 1 . Swap 7 | . 1 . 6 . Drop 13 | . 3 3 7 . Fire 115 | 7 16 12 61 19 Melee . | . . . . . Ram . | . . . . . Kick . | . . . . . Crush . | . . . . . Escape Stasis . | . . . . . Rewire . | . . . . . Trap . | . . . . . Miscellaneous . | . . . . . Route ------- -11/Scrapyard -10/Materials (discovered 2 exits: *Min x2) -10/Mines -9/Materials -9/Mines History --------- Turn | Location | Event 8 | -11/Scrapyard | Discovered new exit (range 16) 113 | -11/Scrapyard | Entered Materials 129 | -10/Materials | Identified exit to Mines 304 | -10/Materials | Build established: Mutant 547 | -10/Materials | Entered Mines 550 | -10/Mines | Received a Mining Laser from a helpful Derelict 614 | -10/Mines | Found the Drone Emporium 638 | -10/Mines | Found Prototype Device 846 | -10/Mines | Discovered new exit (range 10) 1076 | -10/Mines | Entered Materials 1076 | -9/Materials | Evolved 2 slots: Propulsion x1, Utility x1 1465 | -9/Materials | Destroyed 8 combat bots 1812 | -9/Materials | Build established: Scavenger-Mutant 2166 | -9/Materials | Core integrity fell below 50% 2230 | -9/Materials | Discovered new exit (range 8) 2257 | -9/Materials | Entered Mines 2264 | -9/Mines | Assembled infested the area 2269 | -9/Mines | Assisted by a Guerilla fighting off Assembled 2309 | -9/Mines | Core integrity fell below 20% 2447 | -9/Mines | Build established: Mutant 2733 | -9/Mines | Destroyed by S-10 Pest with Light Assault Rifle Last Messages --------------- U-05 Engineer builds a Wall. U-05 Engineer lays Concrete. U-05 Engineer builds a Wall. U-05 Engineer lays Concrete. U-05 Engineer builds a Wall. U-05 Engineer lays Concrete. U-05 Engineer builds a Wall. The unstable cave ceiling collapses. U-05 Engineer lays Concrete. U-05 Engineer builds a Wall. U-05 Engineer lays Concrete. as-37640 suffers critical hit (Destroy). Destroyed Asb. Rifle. U-05 Engineer builds a Wall. Imp. Assault Rifle destroyed. Critical hit (Destroy). as-55214 destroyed. Acquired 12 matter. Acquired Lgt. Ion Engine. Destroyed Lgt. Ion Engine. Map ----- +----------------------------------------------------+ | ??####???????????# ## # #????????? | | ??# ???????????# # # #????????? | | ??# #?????####??### # ## # ?????? | | ??# ###??## ##?# ## # # ??? | | ??# ##?# ### # ## ## ##% #?? | | ??# #?# ###?? | | ??# ### #### # ###### # #??? | | ??# " #??# ## ##??? | | ??# ##??# # ###???? | | ??# ##???########## ##?????? | | ??# ##?????????##???##??????? | | ??# ##???????????????????????? | | ??# ###????????????????????????? | | ??## ##??????????????????????????? | | ???## #???????????????????????????? | | ????# #???????????????????????????? | | ???## ##???????????????????????????? | | ???# #????????????????????????????? | | ???# #????????????????????????????? | | ???# ###????????????????????????????? | | ???# #??????????????????????????????? | | ???# #??????????????????????????????? | | ???# #????????????????##????????????? | | ???# #???########### ##???????????? | | ???# #???# #???????????? | | ???# #???# @ s #??????????? | | ???# ##### ######### #??????????? | | ???# #???????????????????????? | | ???# ##### #???????????????????????? | | ???# #???# #???????????????????????? | | ???# #???# #???????????????????????? | | ??## ##??# #???????????????????????? | | ?## #### #???????????????????????? | | ?# ! #???????????????????????? | | ?# = #???????????????????????? | | ?## =#####???????????????????????? | | ??# ###???????????????????????????? | | ??# ##?????????????????????????????? | | ??# #??????????????????????????????? | | ??# #??????????????????????????????? | | ??# ##?????????????????????????????? | | ??# #?????????????????????????????? | | ??# #????????????????????????????? | | ??# #???????????????????????????? | | ??# #???????????????????????????? | | ??## ##???????????????????????????? | | ????####????????????????????????????? | | ????????????????????????????????????? | | ????????????????????????????????????? | | | +----------------------------------------------------+ Best States ------------- Heat Dissipation 38 Energy Generation 12 Energy Capacity 265 Matter Stores 300 Matter Capacity 300 Sight Range 16 Terrain Scan Range 16 Terrain Scan Density 10 Armor Coverage 150 Evasion (%) 40 Item Schematics ----------------- None Robot Schematics ------------------ None Fabricated ------------ Nothing Alien Tech Used ----------------- None Achievements -------------- Hey, That's Mine! root@ Challenges ------------ None Game ------ Seed AlloySpliceLauncher Manual? 0 Play Time 00:18:37 Cumulative 4.9 hours Start 2024.04.04 @ 11:44:57 End 2024.04.04 @ 15:03:52 Sessions 2 Manual Loads 0 Difficulty Rogue Special Mode None Game No. 4 Rogue 4 Adventurer 0 Explorer 0 Win Type - Total 0 Types 0/0/0/0/0/0/0/0/0 Lore% 8 Gallery% 14 Achievement% 17 Wizard Run 0 Options --------- Layout 0 ASCII 0 Keyboard 1 Movement Numpad Keybinds 1 Fullscreen 1 Font 18/X11 Map View 76x50 Zoom Use 0% Tactical HUD 0 Map Filters NONE Filters NONE Steam 1 RUN: 11ff912f-264d-4ab7-a21b-a12a98a36d36